bitfinex/quotes_ETHUSD_20251224
["timestamp","ask_amount","ask_price","bid_price","bid_amount"]
[1766587210534,0.9647,2901.8,2900.3,0.03447919]
[1766587210734,0.9647,2901.8,2900.2,6.89607612]
[1766587210911,0.99919584,2901.8,2900.3,0.03447919]
[1766587211236,1.8127,2901.8,2900.4,0.3797219]
[1766587211437,0.9647,2901.8,2900.5,0.90047681]
[1766587211953,0.9647,2901.8,2900.5,0.866]
[1766587212250,0.9647,2901.6,2900.4,0.3797219]
[1766587212540,0.9647,2901.6,2900.5,0.03447681]
[1766587212745,1.14597,2901.6,2900.5,3.44768143]
[1766587212903,0.9647,2901.6,2900.5,3.44768143]
[1766587213109,0.9647,2901.6,2900.5,3.48215824]
[1766587213450,1.8137,2902.2,2900.6,0.866]
[1766587213653,1.8137,2902.2,2900.7,0.03447443]
[1766587213935,0.9657,2902.2,2900.8,0.03447324]
[1766587214107,0.9657,2902.2,2900.6,0.96477552]
[1766587214307,0.001,2902.5,2900.7,11.47311314]
[1766587214503,0.03449584,2902.8,2900.9,5.3688918]
[1766587214835,0.9647,2903.6,2901.6,0.09877552]
[1766587215133,0.9647,2903.6,2901.0,0.03447087]
[1766587215134,0.847,2903.5,2901.7,0.03446255]
[1766587215302,1.84619584,2903.4,2901.8,0.13323688]
[1766587215502,0.9647,2903.3,2902.0,0.09877552]
[1766587215726,0.001,2903.7,2902.3,0.09877552]
[1766587215934,0.21669782,2903.8,2902.5,0.09877552]
[1766587216138,0.9647,2904.1,2902.9,0.09877552]
[1766587216139,0.001,2904.0,2902.9,0.09877552]
[1766587216440,0.001,2904.9,2903.9,0.09877552]
[1766587216640,0.9647,2905.6,2904.0,0.03443526]
[1766587216840,0.9647,2905.6,2903.2,0.09877552]
[1766587216841,1.06347552,2905.4,2902.6,0.09877552]
[1766587217039,0.9647,2905.2,2902.9,3.5435834]
[1766587217241,1.8117,2905.1,2903.3,0.09877552]
[1766587217411,3.44135851,2905.9,2903.7,0.09877552]
[1766587217737,2.15583585,2905.8,2903.9,0.09877552]
[1766587217938,0.9647,2904.4,2902.9,3.44480788]
[1766587218110,0.9647,2904.4,2903.0,0.01717126]
[1766587218111,0.9647,2904.2,2903.0,0.01717126]
[1766587218306,0.9647,2904.2,2903.1,3.44459371]
[1766587218535,4.28981484,2904.6,2903.2,0.01717008]
[1766587218849,4.28981484,2904.6,2902.6,4.31014512]
[1766587218850,0.9647,2904.1,2902.6,0.865]
[1766587219006,0.78313446,2904.5,2903.0,3.44467324]
[1766587219207,0.9647,2904.8,2903.2,6.092191]
[1766587219440,0.9647,2904.8,2903.1,0.865]
[1766587219750,4.40729564,2904.8,2903.2,0.01716296]
[1766587219950,0.846,2904.7,2903.2,0.01716296]
[1766587220245,0.846,2905.3,2903.4,10.33271337]
[1766587220540,1.10650181,2905.2,2903.5,1.05042303]
[1766587220749,0.9647,2904.9,2903.6,0.0171511]
[1766587220913,0.9647,2904.9,2903.2,0.865]
[1766587221244,0.9647,2904.7,2903.3,0.01715999]
[1766587221546,0.9647,2904.5,2903.3,0.01715999]
[1766587222072,0.9647,2903.8,2902.1,0.09877552]
[1766587222211,0.9647,2904.8,2902.5,0.09877552]
[1766587222412,1.8107,2904.7,2903.1,0.09877552]
[1766587222650,0.9647,2904.7,2903.2,0.865]
[1766587222948,0.09877552,2904.6,2902.5,0.865]
[1766587223247,0.09877552,2904.2,2902.5,0.865]
[1766587223422,1.06347552,2904.2,2902.5,0.865]
[1766587223742,0.09877552,2904.7,2902.5,1.64058102]
[1766587223944,0.09877552,2904.5,2902.6,8.74421]
[1766587224111,0.845,2904.6,2902.6,3.30581]
[1766587224444,1.06347552,2904.8,2902.8,3.821232]
[1766587224625,0.845,2904.7,2902.8,3.821232]
[1766587224828,0.9647,2904.8,2903.0,18.858683]
[1766587225131,0.9647,2904.8,2903.1,13.621529]
[1766587225369,0.001,2905.2,2903.2,0.865]
[1766587225537,0.845,2905.5,2903.5,0.3244032]
[1766587225748,3.44155935,2905.7,2903.4,0.3244032]
[1766587225928,0.35403349,2905.6,2903.7,23.861355]
[1766587226131,0.9647,2905.8,2903.8,1.1884032]
[1766587226445,0.001,2906.1,2904.4,0.3244032]
[1766587226614,0.001,2906.1,2904.5,0.864]
[1766587226820,0.09877552,2906.5,2904.5,0.864]
[1766587227135,0.9647,2906.6,2904.7,6.39128199]
[1766587227334,0.9647,2907.3,2904.9,0.3244032]
[1766587227541,0.9647,2907.3,2905.0,0.864]
[1766587227862,0.9647,2907.1,2905.1,0.864]
[1766587228022,0.9647,2907.1,2905.3,0.3244032]
[1766587228215,0.9647,2907.9,2905.6,13.7665198]
[1766587228413,0.9647,2907.9,2905.7,1.4754275]
[1766587228644,1.00768634,2907.9,2905.7,1.37665198]
[1766587228833,1.00768634,2907.9,2905.8,0.864]
[1766587229021,0.9647,2907.9,2905.8,0.864]
[1766587229224,1.00768634,2907.9,2905.8,0.864]
[1766587229429,0.9647,2907.7,2905.9,0.23394275]
[1766587229615,1.0076893,2907.7,2905.7,1.37665198]
[1766587229816,1.0076893,2907.7,2905.8,0.864]
[1766587230017,0.0429893,2907.7,2905.8,0.864]
[1766587230330,3.4392828,2907.6,2905.9,6.88254928]
[1766587230526,0.9647,2908.1,2906.3,0.09877552]
[1766587230728,0.9647,2908.1,2906.5,0.09877552]
[1766587230939,0.9647,2908.1,2906.7,0.09877552]
[1766587231143,0.9647,2909.0,2907.1,0.09877552]
[1766587231326,0.9647,2909.0,2907.9,0.09877552]
[1766587231526,0.9647,2909.0,2908.0,0.863]
[1766587231747,0.9647,2909.0,2908.1,0.863]
[1766587231935,0.9826,2908.8,2908.2,0.09877552]
[1766587232139,0.9826,2909.7,2908.7,0.09877552]
[1766587232338,0.001,2910.4,2909.5,0.09877552]
[1766587232636,0.001,2910.4,2909.1,3.43748925]
[1766587232637,1.02553614,2911.3,2910.3,0.09877552]
[1766587232948,3.43438631,2911.8,2910.8,0.09877552]
[1766587233151,0.9826,2911.5,2909.8,0.09877552]
[1766587233361,1.02553319,2911.5,2909.5,0.863]
[1766587233545,0.09877552,2911.3,2908.3,0.09877552]
[1766587233744,0.9826,2911.0,2908.6,0.862]
[1766587233940,0.9826,2910.8,2908.9,0.09877552]
[1766587234144,0.9826,2910.8,2908.6,0.862]
[1766587234145,1.08137552,2910.7,2908.6,0.862]
[1766587234381,0.9826,2910.3,2908.7,0.862]
[1766587234672,3.43477364,2911.4,2908.8,30.09877552]
[1766587234848,0.001,2911.7,2909.3,0.09877552]
[1766587235054,0.843,2911.6,2909.2,0.09877552]
[1766587235237,1.02553319,2911.5,2909.4,0.862]
[1766587235443,1.02553319,2911.5,2909.7,0.09877552]
[1766587235671,0.001,2911.7,2909.7,0.09877552]
[1766587235984,3.43543512,2911.7,2909.7,0.09877552]
[1766587236271,4.41737364,2911.4,2909.8,0.862]
[1766587236637,0.04293614,2911.3,2909.8,4.29865002]
[1766587236954,0.9287,2911.3,2909.8,0.862]
[1766587237150,0.97163614,2911.3,2909.0,0.861]
[1766587237351,0.97163614,2911.3,2910.3,0.09877552]
[1766587237585,0.9287,2911.1,2909.5,0.861]
[1766587237742,0.9287,2910.9,2909.5,0.861]
[1766587237941,14.58180316,2911.5,2908.4,3.53703841]
[1766587237942,0.9287,2910.7,2908.4,0.09877552]
[1766587238248,0.9287,2910.3,2908.5,6.87639676]
[1766587238440,0.9287,2910.1,2908.3,3.43839135]
[1766587238643,10.3075326,2910.5,2908.3,0.861]
[1766587238644,0.9287,2909.9,2908.3,0.861]
[1766587238840,0.14172494,2910.4,2907.0,0.09877552]
[1766587238841,0.9287,2909.7,2907.7,3.43906765]
[1766587239199,0.9287,2909.5,2907.8,0.861]
[1766587239405,0.9287,2909.4,2907.9,3.43890225]
[1766587239706,0.9287,2909.2,2908.2,3.43853086]
[1766587239996,10.3075326,2910.5,2907.4,0.09877552]
[1766587239997,0.9287,2910.0,2908.3,0.86]
[1766587240203,1.02747552,2909.8,2907.1,0.09877552]
[1766587240424,0.9287,2909.6,2907.8,0.002]
[1766587240703,0.9287,2909.4,2907.8,0.002]
[1766587240910,0.9287,2909.2,2907.8,0.002]
[1766587241073,0.9287,2910.0,2907.9,6.596784]
[1766587241275,0.9287,2909.8,2908.0,1.5198784]
[1766587241476,0.8839568,2909.9,2907.8,0.002]
[1766587241477,0.9287,2909.6,2907.8,0.002]
[1766587241714,0.9287,2909.4,2907.8,0.002]
[1766587241927,0.9287,2909.2,2907.8,0.002]
[1766587242262,3.43748925,2909.1,2907.8,0.002]
[1766587242467,0.9287,2909.1,2907.8,0.002]
[1766587242694,0.9287,2909.0,2907.8,0.002]
[1766587243408,0.14173527,2909.7,2907.8,0.002]
[1766587243409,0.97165975,2909.7,2907.8,0.002]
[1766587243716,0.9287,2909.7,2907.9,17.456493]
[1766587243873,0.9287,2909.6,2907.8,0.002]
[1766587244072,0.97166123,2909.6,2907.9,0.86]
[1766587244280,0.9287,2910.5,2908.1,10.31601387]
[1766587244484,0.9287,2910.3,2908.1,6.87734258]
[1766587244805,0.9287,2910.1,2908.1,6.87734258]
[1766587245119,0.9287,2909.9,2907.9,0.859]
[1766587245275,0.9287,2909.7,2907.9,0.859]
[1766587245469,0.9287,2909.5,2907.9,0.859]
[1766587245675,0.9287,2909.3,2907.8,0.002]
[1766587245971,0.9287,2909.1,2908.0,6.87757908]
[1766587246198,0.09877552,2910.4,2908.1,0.09877552]
[1766587246199,0.9287,2909.8,2908.1,0.09877552]
[1766587246522,1.11006435,2910.6,2908.9,0.09877552]
[1766587246699,0.9287,2910.6,2909.0,0.09877552]
[1766587246899,0.9287,2911.4,2909.2,0.09877552]
[1766587247108,0.84,2911.3,2909.4,0.09877552]
[1766587247276,0.04293762,2911.2,2909.4,0.09877552]
[1766587247615,0.001,2911.7,2910.1,0.3244032]
[1766587247819,0.001,2911.7,2910.2,0.95777552]
[1766587248124,0.9287,2912.1,2910.6,0.09877552]
[1766587248318,0.9297,2912.7,2911.0,6.87049124]
[1766587248477,0.9297,2912.7,2910.6,0.09877552]
[1766587248478,0.97161698,2912.6,2910.6,0.09877552]
[1766587248681,0.001,2911.5,2910.2,0.95777552]
[1766587249021,0.001,2911.5,2910.8,3.43543996]
[1766587249185,0.001,2911.5,2910.2,0.95777552]
[1766587249186,0.97161992,2912.4,2910.9,6.87067993]
[1766587249383,0.97161992,2912.4,2910.1,3.76065124]
[1766587249384,0.9287,2912.2,2909.7,0.09877552]
[1766587249594,0.9287,2912.2,2910.1,0.09877552]
[1766587249794,0.78392009,2912.5,2910.1,0.09877552]
[1766587249795,0.97162435,2912.1,2910.1,0.09877552]
[1766587250082,0.97162435,2912.1,2910.1,3.53504446]
[1766587250465,0.9287,2911.9,2910.3,3.43607188]
[1766587250580,0.9287,2911.7,2909.2,0.95677552]
[1766587250784,0.9287,2911.2,2909.2,0.858]
[1766587250990,0.9287,2911.0,2909.3,3.43722043]
[1766587251192,0.98071461,2911.1,2909.2,4.29528258]
[1766587251193,0.9287,2910.8,2909.2,4.29528258]
[1766587251425,0.09877552,2911.6,2909.2,3.43726559]
[1766587251426,0.9287,2910.5,2909.2,3.43726559]
[1766587251586,0.9287,2910.5,2908.9,0.002]
[1766587251786,0.9287,2910.5,2909.0,17.948911]
[1766587252084,0.9287,2910.5,2908.9,0.002]
[1766587252309,3.43497677,2911.3,2909.0,3.43755553]
[1766587252494,0.34349768,2911.2,2909.2,8.201246]
[1766587252695,3.43423758,2911.9,2909.1,5.11504875]
[1766587252696,0.9287,2912.0,2909.9,0.3244032]
[1766587253019,0.9287,2912.0,2909.6,0.2]
[1766587253020,1.07040281,2911.9,2910.0,0.858]
[1766587253325,0.09877552,2910.8,2909.1,1.37527323]
[1766587253482,0.09877552,2910.4,2909.1,1.37527323]
[1766587253880,0.09877552,2910.0,2908.9,3.4397256]
[1766587254094,0.9287,2910.6,2908.9,3.4397256]
[1766587254291,0.97164794,2910.5,2908.9,0.002]
[1766587254491,0.9287,2910.3,2908.9,0.002]
[1766587255022,0.04294204,2910.9,2909.0,26.61554452]
[1766587255325,0.9287,2911.1,2909.5,30.0]
[1766587255529,0.9287,2911.1,2909.6,0.09877552]
[1766587256026,1.7667,2911.1,2909.6,0.09877552]
[1766587256233,0.9287,2911.1,2909.6,0.09877552]
[1766587256529,0.97164057,2911.0,2909.3,3.43725294]
[1766587256745,0.9287,2910.8,2908.3,0.09877552]
[1766587256903,0.9287,2910.6,2908.3,0.09877552]
[1766587257096,0.78419367,2910.9,2908.2,0.857]
[1766587257097,0.9287,2910.4,2908.2,0.857]
[1766587257402,0.9287,2910.2,2908.3,0.09877552]
[1766587257705,0.88095089,2910.3,2908.6,3.43804836]
[1766587257706,0.9287,2910.0,2908.6,3.43804836]
[1766587257933,0.9716568,2909.9,2907.8,0.002]
[1766587258138,1.02747552,2909.8,2908.1,3.43859501]
[1766587258342,1.02747552,2909.8,2907.8,0.002]
[1766587258343,0.09877552,2909.4,2907.8,0.002]
[1766587258534,0.9287,2909.1,2907.8,0.002]
[1766587258730,0.9287,2908.9,2907.8,0.002]
[1766587259043,1.10966701,2908.9,2907.8,0.002]
[1766587259412,0.838,2908.8,2907.8,0.002]
[1766587259606,0.838,2908.7,2907.8,0.002]
[1766587259813,0.9287,2908.9,2907.8,0.002]
[1766587260420,0.9287,2908.7,2907.8,0.002]
[1766587260622,0.9287,2908.6,2907.8,0.002]
[1766587260833,0.838,2908.6,2907.8,0.002]
[1766587261149,0.97167747,2908.5,2907.8,0.002]
[1766587261459,0.837,2908.7,2907.8,0.002]
[1766587261607,0.9192,2909.0,2907.8,0.002]
[1766587261812,1.637,2908.9,2907.8,0.002]
[1766587262132,0.837,2908.8,2907.8,0.002]
[1766587262451,0.9192,2908.5,2907.8,0.002]
[1766587262664,0.9192,2908.3,2906.5,3.44256425]
[1766587262820,1.01797552,2908.1,2906.5,0.002]
[1766587263034,0.9192,2907.8,2906.5,0.002]
[1766587263233,0.9192,2907.7,2906.5,0.002]
[1766587263642,0.18989604,2907.8,2906.5,0.002]
[1766587263643,0.9192,2907.6,2906.5,0.002]
[1766587263862,0.09877552,2906.4,2904.7,3.44261085]
[1766587264030,0.09877552,2906.2,2905.3,3.44194761]
[1766587264235,0.09877552,2906.0,2905.2,3.44209303]
[1766587264470,0.09877552,2906.0,2903.8,0.856]
[1766587264471,0.09877552,2906.0,2904.2,3.44324685]
[1766587264672,1.7562,2906.1,2904.2,3.44324685]
[1766587264876,1.01797552,2907.6,2904.8,0.2]
[1766587265162,0.09877552,2907.0,2904.8,0.2]
[1766587265369,0.09877552,2906.8,2905.3,0.856]
[1766587265530,0.09877552,2908.7,2905.6,6.71568519]
[1766587265845,0.09877552,2908.7,2906.3,0.3244032]
[1766587266047,0.09877552,2908.7,2906.7,0.3244032]
[1766587266234,0.9192,2909.6,2907.2,0.3244032]
[1766587266562,0.09877552,2909.7,2907.0,0.2]
[1766587266563,0.9192,2909.4,2907.5,17.19690455]
[1766587266866,0.9192,2909.4,2907.7,10.767111]
[1766587267054,0.9192,2909.4,2907.6,0.03439262]
[1766587267055,1.01797552,2909.3,2907.8,1.08015036]
[1766587267366,0.93577552,2909.8,2907.5,13.75752364]
[1766587267367,0.09877552,2909.8,2907.9,0.03438907]
[1766587267535,0.09877552,2909.8,2908.1,2.055763]
[1766587267536,0.837,2909.6,2908.1,2.055763]
[1766587267735,0.09877552,2909.5,2908.0,0.856]
[1766587267936,0.9192,2909.2,2908.1,0.03438671]
[1766587268136,0.9192,2909.2,2907.5,13.75752364]
[1766587268358,0.9192,2909.2,2907.6,1.41014498]
[1766587268563,1.01797552,2909.1,2907.7,3.47353578]
[1766587268877,1.01797552,2908.9,2907.6,4.81498865]
[1766587269030,1.01797552,2909.6,2907.7,8.19613844]
[1766587269233,0.9192,2909.4,2907.6,13.75702415]
[1766587269430,0.9192,2909.4,2907.7,0.03439144]
[1766587269676,1.7562,2909.4,2907.7,0.03439144]
[1766587269859,0.9192,2910.2,2908.0,6.71568519]
[1766587270035,0.09877552,2909.3,2907.8,1.37914156]
[1766587270237,0.09877552,2909.2,2907.9,0.03438907]
[1766587270477,0.09877552,2909.2,2907.8,1.37914156]
[1766587270478,1.01797552,2908.9,2907.8,1.37914156]
[1766587270773,1.01797552,2908.7,2907.9,0.03438907]
[1766587270973,0.09877552,2908.5,2907.7,3.43913498]
[1766587271143,1.01797552,2908.7,2907.8,3.47341563]
[1766587271342,0.09877552,2908.5,2907.8,0.03439026]
[1766587271562,1.01797552,2908.7,2907.8,6.87801932]
[1766587271875,0.9192,2908.7,2907.9,0.03438907]
[1766587272044,0.09877552,2908.4,2907.5,0.002]
[1766587272366,0.836,2908.3,2907.5,0.002]
[1766587272581,1.06095743,2908.2,2907.5,0.002]
[1766587272739,0.09877552,2908.0,2907.5,0.002]
[1766587272934,0.9192,2907.9,2907.5,0.002]
[1766587273240,0.09877552,2908.8,2907.5,0.002]
[1766587273562,1.01797552,2908.9,2907.5,0.002]
[1766587273757,0.09877552,2908.7,2907.5,0.002]
[1766587274072,1.01797552,2908.7,2907.5,0.0363938]
[1766587274376,1.7552,2908.7,2907.6,0.03439262]
[1766587274693,0.9192,2908.7,2907.5,0.002]
[1766587274842,0.9192,2908.7,2907.5,0.0363938]
[1766587275156,0.9192,2908.5,2907.6,0.03439262]
[1766587275361,0.836,2908.7,2907.6,0.03439262]
[1766587275559,0.9192,2909.1,2907.6,0.03439262]
[1766587275888,1.01797552,2909.8,2907.7,12.937529]
[1766587276036,0.9192,2909.8,2907.9,30.0]
[1766587276237,0.9192,2909.6,2908.0,0.03438789]
[1766587276548,0.9192,2910.4,2908.4,0.3244032]
[1766587276787,0.09877552,2910.1,2908.2,6.8771061]
[1766587276978,0.9192,2909.8,2908.3,0.03438434]
[1766587277278,0.8,2910.2,2908.4,1.12060435]
[1766587277575,0.9192,2910.5,2908.4,1.12060435]
[1766587277576,0.836,2910.4,2908.5,0.03438198]
[1766587277781,0.09877552,2910.1,2908.4,1.12060435]
[1766587278084,0.09877552,2910.3,2908.5,0.03438198]
[1766587278245,0.93477552,2910.5,2908.5,0.03438198]
[1766587278447,0.9192,2910.5,2908.8,0.3244032]
[1766587278685,0.04293909,2911.1,2909.2,0.3244032]
[1766587278957,0.9192,2911.2,2909.1,7.162403]
[1766587279245,1.06091461,2911.1,2908.9,12.06770061]
[1766587279450,0.9192,2910.8,2909.0,0.03437607]
[1766587279786,0.9192,2910.6,2909.0,0.03437607]
[1766587279988,0.9192,2910.4,2909.1,0.67501027]
[1766587280289,0.9202,2910.0,2908.4,0.856]
[1766587280484,0.09877552,2909.9,2908.5,0.03438198]
[1766587280740,0.9192,2910.0,2908.6,0.0343808]
[1766587281012,0.09877552,2910.5,2908.6,0.0343808]
[1766587281013,5.33179129,2910.5,2908.7,0.69107483]
[1766587281211,0.96214794,2910.5,2908.8,29.86884543]
[1766587281395,0.835,2911.0,2908.8,29.834467]
[1766587281596,0.09877552,2910.5,2908.7,0.69107483]
[1766587281907,0.9192,2910.2,2908.8,0.03437843]
[1766587282275,0.9192,2910.2,2908.9,0.856]
[1766587282475,0.9192,2910.2,2909.0,0.03437607]
[1766587282676,0.9192,2910.2,2909.1,10.31246775]
[1766587282913,0.9192,2910.2,2909.2,1.03468438]
[1766587283206,0.9192,2910.2,2909.2,1.06905809]
[1766587283702,0.9192,2910.9,2909.2,1.06905809]
[1766587283903,0.9192,2910.9,2909.3,11.767032]
[1766587284111,0.001,2911.5,2909.6,27.000943]
[1766587284416,0.001,2911.5,2909.7,1.00274702]
[1766587284574,0.001,2911.5,2909.8,35.99848193]
[1766587284774,0.001,2911.5,2909.9,0.856]
[1766587284980,0.001,2911.5,2910.0,6.19414]
[1766587285180,0.001,2911.5,2910.1,0.03436308]
[1766587285613,0.9202,2911.5,2909.9,0.856]
[1766587285778,0.9202,2911.5,2910.0,1.15096295]
[1766587286712,0.9192,2911.1,2909.9,0.856]
[1766587286919,0.9192,2911.1,2910.0,3.47074864]
[1766587287076,0.87694057,2911.0,2909.9,0.856]
[1766587287276,0.834,2910.9,2910.0,0.03436426]
[1766587287527,0.834,2910.9,2909.5,0.856]
[1766587287528,1.06091904,2910.8,2909.5,4.29292334]
[1766587287817,0.9192,2910.7,2909.9,3.43653528]
[1766587288062,0.001,2911.5,2910.0,7.76321102]
[1766587288307,0.001,2911.5,2910.1,0.03436308]
[1766587288614,0.9192,2911.4,2910.1,0.03436308]
[1766587288801,0.9192,2911.2,2910.1,3.47061746]
[1766587289128,1.7532,2911.2,2910.1,3.47061746]
[1766587289325,0.9192,2911.1,2910.1,3.47061746]
[1766587289611,0.001,2911.5,2910.1,6.90692549]
[1766587289815,0.001,2911.5,2910.1,6.87256241]
[1766587290037,3.47861086,2911.5,2910.2,0.77285624]
[1766587290175,0.09877552,2911.3,2910.2,0.03436189]
[1766587290378,7.01206405,2911.5,2909.8,0.856]
[1766587290379,0.9192,2911.2,2910.0,3.43635618]
[1766587290614,4.39737359,2911.1,2909.8,0.856]
[1766587290918,0.001,2911.5,2910.3,0.09877552]
[1766587291126,0.001,2911.5,2910.4,0.03435953]
[1766587291421,0.001,2911.5,2910.4,0.88935953]
[1766587291827,0.9453,2911.5,2910.4,0.88935953]
[1766587292006,0.98723467,2911.4,2909.9,0.09877552]
[1766587292214,0.9443,2911.4,2909.1,0.09877552]
[1766587292530,0.98723467,2911.4,2909.6,3.43686504]
[1766587292826,0.9443,2911.0,2909.7,0.00845581]
[1766587293050,0.9443,2910.8,2909.7,0.00845581]
[1766587293232,0.9443,2910.6,2909.7,3.4367629]
[1766587293399,0.9443,2910.6,2909.8,0.00846601]
[1766587293602,0.9443,2910.6,2909.6,3.43682946]
[1766587293803,0.9443,2911.2,2909.7,7.83575084]
[1766587294102,0.04293909,2911.1,2909.7,7.8272835]
[1766587294316,0.9443,2911.2,2909.9,0.09877552]
[1766587294511,0.98723762,2911.2,2909.7,7.8272835]
[1766587294731,0.9443,2911.0,2909.7,7.8272835]
[1766587294938,3.4779949,2911.2,2909.7,7.72852906]
[1766587294939,0.9443,2910.8,2909.7,7.72852906]
[1766587295221,0.9443,2911.4,2909.8,0.9622377]
[1766587295427,0.98723614,2911.3,2909.8,0.9622377]
[1766587295583,0.9443,2911.3,2910.1,0.09877552]
[1766587295789,0.9443,2911.3,2910.2,0.00844904]
[1766587296103,0.04293762,2911.2,2910.3,0.00844742]
[1766587296419,0.98723909,2911.1,2910.0,0.855]
[1766587296719,0.9741,2910.8,2910.1,0.00845333]
[1766587296918,0.9741,2910.8,2909.7,0.00845599]
[1766587297127,0.9741,2910.8,2909.5,0.855]
[1766587297128,1.01704499,2910.7,2909.6,0.00846247]
[1766587297322,0.9741,2910.7,2910.0,3.43636957]
[1766587297537,0.001,2911.4,2910.1,4.2997239]
[1766587297538,0.04293762,2911.2,2910.1,4.2997239]
[1766587297703,0.9741,2911.2,2910.1,0.86345865]
[1766587297893,0.9741,2911.0,2910.2,0.00845037]
[1766587298289,0.9741,2911.0,2909.7,0.95377552]
[1766587298290,0.9741,2911.0,2910.3,0.96222781]
[1766587298509,0.001,2911.4,2910.3,0.86345229]
[1766587298813,0.001,2911.5,2910.7,6.87119936]
[1766587299011,0.001,2911.5,2910.8,0.855]
[1766587299205,0.9741,2911.8,2910.8,0.86343666]
[1766587299523,0.9741,2911.8,2910.8,0.96221218]
[1766587299833,0.001,2912.7,2911.2,0.09877552]
[1766587300033,0.001,2912.7,2911.8,0.09877552]
[1766587300344,0.9751,2913.1,2911.9,0.86340289]
[1766587300821,3.47584149,2913.0,2912.0,0.00839594]
[1766587301024,0.9741,2912.9,2911.6,0.10717146]
[1766587301224,0.9741,2912.9,2912.0,0.09877552]
[1766587301525,0.9741,2914.3,2912.6,0.09877552]
[1766587301733,4.26425027,2914.4,2912.8,0.09877552]
[1766587301734,0.9741,2914.1,2912.8,0.09877552]
[1766587301889,0.9741,2914.1,2912.9,0.0083681]
[1766587302090,0.9741,2913.9,2912.2,0.09877552]
[1766587302296,1.0169993,2913.8,2911.6,0.09877552]
[1766587302620,0.9741,2913.6,2911.7,0.10716702]
[1766587302819,0.9741,2913.6,2911.8,3.4343018]
[1766587302820,0.9741,2913.2,2911.8,3.4343018]
[1766587303015,1.01700814,2913.2,2911.9,0.00839682]
[1766587303215,0.9741,2913.2,2912.1,0.09877552]
[1766587303411,0.9741,2913.2,2912.2,0.09877552]
[1766587303626,1.41475176,2913.2,2912.3,0.00838977]
[1766587303926,0.9741,2913.0,2912.4,0.00838815]
[1766587304226,0.9741,2913.0,2912.1,0.00838948]
[1766587305124,0.9741,2913.0,2911.6,0.00839577]
[1766587305125,1.01701256,2912.9,2911.6,0.00839577]
[1766587305300,1.01701256,2912.9,2911.5,4.28865228]
[1766587305501,0.9741,2912.7,2911.6,3.44292328]
[1766587305823,0.9741,2912.6,2912.1,0.09877552]
[1766587306031,0.001,2913.2,2912.2,0.10717488]
[1766587306213,0.001,2913.2,2912.1,4.2879311]
[1766587306214,0.9741,2913.1,2912.1,0.09877552]
[1766587306526,0.9741,2913.1,2912.3,0.09877552]
[1766587306709,0.9741,2913.1,2912.7,0.09877552]
[1766587306899,0.9741,2913.1,2912.5,0.09877552]
[1766587306900,0.9741,2913.1,2912.8,0.00838301]
[1766587307095,3.43282337,2913.1,2912.1,0.09877552]
[1766587307301,0.9741,2913.0,2912.2,0.10716823]
[1766587307508,0.001,2913.2,2912.3,0.09877552]
[1766587307728,3.43367393,2913.2,2912.1,0.09877552]
[1766587308024,0.9741,2913.1,2912.2,0.86239139]
[1766587308230,0.9741,2913.1,2912.3,0.09877552]
[1766587308429,0.9741,2913.1,2912.4,0.00838948]
[1766587308605,0.9741,2913.1,2912.3,0.09877552]
[1766587308811,0.9741,2913.1,2912.4,0.00838815]
[1766587309107,0.9741,2913.1,2911.9,3.53292423]
[1766587309108,1.01701108,2913.0,2911.9,0.854]
[1766587309324,1.01701108,2913.0,2912.0,0.00839728]
[1766587309503,0.9741,2912.9,2912.0,0.00839728]
[1766587309832,0.9741,2912.7,2912.0,0.00839728]
[1766587310530,0.9741,2912.7,2912.0,0.1071728]
[1766587310730,0.001,2913.2,2912.2,3.53252794]
[1766587310933,0.9751,2913.2,2912.3,0.00838977]
[1766587311228,0.9751,2913.2,2912.0,0.09877552]
[1766587311229,1.01700961,2913.1,2912.1,0.00838901]
[1766587311428,0.9741,2913.1,2912.2,0.10716766]
[1766587311628,0.9741,2913.1,2912.2,0.00839214]
[1766587311831,0.9741,2912.9,2911.9,0.09877552]
[1766587312040,0.9741,2912.9,2912.0,0.00839861]
[1766587312436,0.9741,2912.9,2912.0,3.44242608]
[1766587312753,0.9741,2912.9,2912.1,0.09877552]
[1766587312959,0.9741,2912.7,2912.2,0.00839536]
[1766587313098,0.9741,2912.7,2912.0,0.0083967]
[1766587313301,0.9741,2912.7,2912.0,3.54122429]
[1766587313603,0.9741,2912.7,2912.0,0.35412243]
[1766587313853,0.9741,2912.7,2911.2,3.53369913]
[1766587313854,0.9741,2912.7,2911.9,0.853]
[1766587314005,0.9751,2912.7,2911.9,0.853]
[1766587314316,0.9741,2912.6,2911.8,0.853]
[1766587314651,0.9741,2912.6,2911.9,0.00840422]
[1766587314798,0.9741,2912.6,2911.7,0.00840422]
[1766587315116,0.9741,2912.2,2911.3,0.09877552]
[1766587315318,0.9741,2912.2,2911.5,0.09877552]
[1766587315507,0.833,2912.6,2911.7,0.09877552]
[1766587315712,0.9741,2912.5,2911.8,0.00840584]
[1766587315929,0.9741,2912.5,2911.6,0.00840584]
[1766587316132,0.9741,2912.5,2911.4,0.09877552]
[1766587316331,0.9741,2912.5,2911.6,0.09877552]
[1766587316532,0.9741,2912.5,2911.7,0.00840877]
[1766587316723,0.9741,2912.5,2911.5,0.00840877]
[1766587317032,0.001,2912.7,2911.5,0.00840877]
[1766587317033,0.001,2912.7,2911.9,0.09877552]
[1766587317248,0.9741,2913.1,2912.0,0.00840127]
[1766587317413,0.9741,2913.1,2912.0,0.10717014]
[1766587317600,0.9741,2913.0,2912.1,0.00839433]
[1766587317806,0.9741,2913.0,2912.0,0.00839433]
[1766587318629,0.9741,2912.8,2911.6,3.43448862]
[1766587318799,0.9741,2912.6,2911.6,3.43448862]
[1766587319005,0.9741,2912.6,2911.5,3.43461229]
[1766587319330,0.9741,2912.6,2911.6,0.00840906]
[1766587320336,0.9741,2912.6,2911.6,0.00840774]
[1766587320504,0.9741,2912.6,2911.6,0.10718326]
[1766587320704,0.04291108,2913.0,2911.8,0.09877552]